Cogmind - Beta 15 @@@ ROGUE MODE // 2025.07.05 @ 08:21:19 Player: Florist Result: Destroyed by Shrapnel Trap Performance ------------- Evolutions (0) 0 Regions Visited (2) 400 Robots Destroyed (20) 100 Value Destroyed (481) 481 Prototype IDs (11) 220 Alien Tech Used (0) 0 Bonus (-57) -57 TOTAL SCORE: 1144 Bonus ------- Friendly Fire -57 Cogmind --------- Core Integrity 0/250 Matter 84/300 Energy 98/100 System Corruption 0% Temperature Cool (1) Movement Treading (240) Ox1 Location -10/Subcaves Parts ------- > --- POWER (1) -------- (None) > --- PROPULSION (2) --- Light Treads > --- UTILITY (2) ------ Large Storage Unit Medium Armor Plating > --- WEAPON (2) ------- Medium Laser Small Laser > --- INVENTORY (15) --- Wheel Compact Wheel Seismic Detector Medium Armor Plating Small Laser Subdweller Beam Cannon Rocket Launcher Rocket Launcher Peak State ------------ > --- POWER ------------ Light Ion Engine > --- PROPULSION ------- Light Treads Light Treads > --- UTILITY ---------- Large Storage Unit Medium Armor Plating > --- WEAPON ----------- Subdweller Beam Cannon Subdweller Beam Cannon > --- INVENTORY -------- Light Treads Wheel Compact Wheel Seismic Detector Medium Armor Plating Medium Armor Plating Medium Laser Small Laser Small Laser Rocket Launcher Rocket Launcher [Rating: 11] Favorites ----------- Power Light Ion Engine Engine Light Ion Engine Propulsion Light Treads Treads Light Treads Utility Large Storage Unit Device Seismic Detector Storage Large Storage Unit Protection Medium Armor Plating Weapon Subdweller Beam Cannon Energy Gun Medium Laser Energy Cannon Subdweller Beam Cannon Launcher Rocket Launcher Build | -11 -10 -10 ------- Run | Yrd Mat Sub Slots Evolved . | . . . Power . | . . . Propulsion . | . . . Utility . | . . . Weapon . | . . . Parts Attached 19 | 7 3 9 Power 2 | 1 . 1 Engine 2 | 1 . 1 Core . | . . . Reactor . | . . . Propulsion 3 | 2 . 1 Treads 3 | 2 . 1 Leg . | . . . Wheel . | . . . Hover . | . . . Flight . | . . . Utility 6 | 2 2 2 Device 1 | 1 . . Storage 3 | 1 2 . Processor . | . . . Hackware . | . . . Protection 2 | . . 2 Artifact . | . . . Weapon 8 | 2 1 5 Energy Gun 4 | 2 1 1 Energy Cannon 2 | . . 2 Ballistic Gun . | . . . Ballistic Cannon . | . . . Launcher 2 | . . 2 Special Weapon . | . . . Impact Weapon . | . . . Slashing Weapon . | . . . Piercing Weapon . | . . . Special Melee Weapon . | . . . Unidentified Prototypes . | . . . Parts Lost 7 | . . 7 Power 2 | . . 2 Propulsion 2 | . . 2 Utility 1 | . . 1 Weapon 2 | . . 2 Highest Loss Streak 2 | . . 2 To Critical Strikes . | . . . Average Backups 9 | 2 9 10 Power . | . 1 . Propulsion 2 | 1 2 2 Utility 2 | . 2 2 Weapon 4 | . 3 4 Tool/Special . | . . . Unused Backups 3 | . . 3 Power . | . . . Propulsion 2 | . . 2 Utility 1 | . . 1 Weapon . | . . . Tool/Special . | . . . Average Slot Usage (%) 98 | . 100 98 Engine 13 | . 14 13 Treads 27 | . 28 27 Device 5 | . 14 3 Storage 14 | . 14 14 Protection 8 | . . 10 Energy Gun 12 | . 28 7 Energy Cannon 15 | . . 19 Peak Build Rating 11 | 7 8 11 Average Rating 9 | 5 7 10 On Entrance 5 | . 7 8 Naked Turns . | . . . Heaviest Build 46 | 12 28 46 Greatest Support 40 | 40 40 40 Greatest Overweight (x) 1 | . . 1 Average Overweight (x) . | . . . Largest Inventory Capacity 15 | 8 15 15 Average Capacity 14 | 7 12 15 Most Carried 12 | 3 11 12 Average Carried 9 | 2 9 10 Final Capacity 15 | 8 15 15 Final Carried 11 | 3 11 8 Class Distribution -------------------- 100% | Mutant Dominant Class ---------------- Mutant | -10/Materials Mutant | -10/Subcaves Resources | -11 -10 -10 ----------- Run | Yrd Mat Sub Matter Collected 375 | 238 62 75 Remotely . | . . . Salvage Created 492 | 54 170 268 Parts 27 | 8 8 11 Haulers Intercepted 1 | . 1 . Recyclers Shooed 1 | . 1 . Parts Field Recycled . | . . . Retrieved Matter . | . . . Parts Self-Destructed 2 | . . 2 Prevented . | . . . Kills | -11 -10 -10 ------- Run | Yrd Mat Sub Combat Hostiles Destroyed 13 | . 3 10 Guns 5 | . 3 2 Cannons 3 | . . 3 AOE 4 | . . 4 Classes Destroyed 8 | 1 3 4 Tunneler 3 | 3 . . Hauler 1 | . 1 . Turret 2 | . . 2 Watcher 1 | . 1 . Swarmer 4 | . . 4 Grunt 3 | . 3 . Artisan 1 | . . 1 Subdweller 6 | . . 6 Best Kill Streak 5 | 3 1 5 Combat Bots Only 4 | . 1 4 Max Kills in Single Turn 3 | 1 1 3 Gunslinging . | . . . Exploded 3 | . . 3 Melee . | . . . Uniques/NPCs Destroyed . | . . . Combat | -11 -10 -10 -------- Run | Yrd Mat Sub Hostile Shots Fired 91 | . 17 74 Missed 23 | . 3 20 Hits 68 | . 14 54 Projectile 68 | . 14 54 Critical Strikes 1 | . . 1 Damage Taken 1221 | . 171 1050 Core 264 | . 41 223 Absorbed by Shields . | . . . Core Remaining (%) 100 | 100 . . Volleys Fired 69 | 6 19 44 Largest 2 | 2 2 2 Hottest 160 | 90 100 160 Shots Fired 129 | 12 38 79 Gun 81 | 12 38 31 Cannon 32 | . . 32 Launcher 16 | . . 16 Special . | . . . Kinetic . | . . . Thermal 113 | 12 38 63 Explosive 16 | . . 16 Electromagnetic . | . . . Robot Hit Streak 18 | 3 11 18 Robot Miss Streak 2 | 1 1 2 Penetration Max . | . . . Secondary Targets . | . . . Shots Hit Robots 88 | 6 28 54 Core Hits 30 | 3 10 17 Critical Kills 1 | . . 1 Critical Parts Destroyed . | . . . Critical Strikes 9 | . 5 4 Burn 8 | . 5 3 Meltdown 1 | . . 1 Melee Attacks . | . . . Impact . | . . . Slashing . | . . . Piercing . | . . . Sneak Attacks . | . . . Combat Hostiles . | . . . Follow-up Attacks . | . . . Damage Inflicted 1842 | 72 353 1417 Guns 774 | 72 353 349 Cannons 631 | . . 631 Explosions 437 | . . 437 Melee . | . . . Ramming . | . . . Kinetic . | . . . Thermal 1405 | 72 353 980 Explosive 437 | . . 437 Electromagnetic . | . . . Impact . | . . . Slashing . | . . . Piercing . | . . . Highest Corruption . | . . . Average Corruption . | . . . Corruption Purged . | . . . Corruption Blocked . | . . . Overload Shots . | . . . Overflow Damage 80 | . . 80 Projectiles 24 | . . 24 Explosions 56 | . . 56 Melee . | . . . Knockbacks . | . . . Impact . | . . . Kinetic . | . . . Secondary . | . . . Self-Inflicted Damage 71 | . . 71 Shots 2 | . . 2 Rammed . | . . . Targets Rammed . | . . . Kicked . | . . . Crushed . | . . . Highest Temperature 432 | 120 291 432 Average Temperature 115 | 51 102 148 Received Heat Transfer 629 | . 96 533 Effects 3 | . 1 2 Shutdowns 1 | . . 1 Energy Bleed 1 | . 1 . Interference 1 | . . 1 Siege Activations . | . . . Martial Activations . | . . . Shielding Activations . | . . . Robots Disrupted . | . . . Combat Hostiles . | . . . Robots Corrupted . | . . . Combat Hostiles . | . . . Parts Fried . | . . . Impact Corruptions . | . . . Robots Melted 1 | . . 1 Combat Hostiles 1 | . . 1 Parts Melted 7 | . 2 5 Heat Transferred 3666 | 210 1347 2109 Parts Sabotaged . | . . . Parts Stolen . | . . . Parts Stripped . | . . . Power Chain Reactions . | . . . Alert | -11 -10 -10 ------- Run | Yrd Mat Sub Maximum Alert Level . | . . . Low Security (%) 100 | 100 100 . Level 1 . | . . . Level 2 . | . . . Level 3 . | . . . Level 4 . | . . . Level 5 . | . . . High Security . | . . . Max Security . | . . . Peak Influence 31 | 10 31 . Initial . | . . . Average 3 | . 3 . Influence Increases 341 | 15 101 225 Destroy 0b10 Robot/C 180 | . 60 120 Destroy 0b10 Robot/NC 25 | 15 10 . Destroy Leader 14 | . 14 . Destroy Structure 2 | . 2 . Lose Combat Pursuer 120 | . 15 105 Influence Decreases 126 | 15 81 30 Entered New Map 10 | . . 10 Time Decay 116 | 15 81 20 Squads Dispatched 1 | . 1 . Investigation 1 | . 1 . Extermination . | . . . Reinforcement . | . . . Assault . | . . . Garrison . | . . . Intercept . | . . . Searches Triggered . | . . . Construction Impeded . | . . . Haulers Reinforced . | . . . Active Scanning Responses . | . . . Cargo Convoy Interrupts . | . . . Stealth | -11 -10 -10 --------- Run | Yrd Mat Sub Distress Signals . | . . . Communications Jammed . | . . . Distress Signals . | . . . Times Spotted 18 | . 5 13 Peak Tracking Total 6 | . 2 6 Tactical Retreats 5 | . 1 4 Traps | -11 -10 -10 ------- Run | Yrd Mat Sub Traps Triggered 2 | . 1 1 Indirectly . | . . . Trap Hack Attempts . | . . . Triggered . | . . . Disarmed . | . . . Reprogrammed . | . . . Reused . | . . . Traps Extracted . | . . . Installed . | . . . Triggered . | . . . Machines | -11 -10 -10 ---------- Run | Yrd Mat Sub Machines Disabled 4 | . . 4 Max in Single Turn 2 | . . 2 Machines Repaired . | . . . Machines Dismantled . | . . . Machines Sabotaged . | . . . Overloaded Fab Kills . | . . . Hacking | -11 -10 -10 --------- Run | Yrd Mat Sub Machines Accessed 1 | . . 1 Terminals . | . . . Fabricators . | . . . Repair Stations . | . . . Recycling Units . | . . . Scanalyzers . | . . . Garrison Access . | . . . Total Hacks 1 | . . 1 Successful 1 | . . 1 Failed . | . . . Catastrophic . | . . . Database Lockouts . | . . . Manual . | . . . Terminals . | . . . Fabricators . | . . . Repair Stations . | . . . Recycling Units . | . . . Scanalyzers . | . . . Garrison Access . | . . . Terminal Hacks 1 | . . 1 Proto ID Catalog 1 | . . 1 Fabricator Hacks . | . . . Repair Station Hacks . | . . . Recycling Unit Hacks . | . . . Scanalyzer . | . . . Garrison Access Hacks . | . . . Unauthorized Hacks . | . . . Terminals . | . . . Fabricators . | . . . Repair Stations . | . . . Recycling Units . | . . . Scanalyzers . | . . . Garrison Access . | . . . Data Cores Recovered . | . . . Used . | . . . Hacking Detections . | . . . Full Trace Events . | . . . Feedback Events . | . . . Feedback Blocked . | . . . Robot Schematics Acquired . | . . . Robots Built . | . . . Authchips . | . . . Time . | . . . Total Robot Build Rating . | . . . Part Schematics Acquired . | . . . Parts Built . | . . . Authchips . | . . . Time . | . . . Total Part Build Rating . | . . . Parts Repaired . | . . . Time . | . . . Parts Recycled . | . . . Recycled Matter . | . . . Retrieved Matter . | . . . Retrieved Components . | . . . Parts Scanalyzed . | . . . Part Schematics Acquired . | . . . Parts Damaged . | . . . Bothacking | -11 -10 -10 ------------ Run | Yrd Mat Sub Used RIF Installer . | . . . Robots Hacked . | . . . Non-combat . | . . . Combat . | . . . Robot Hacks Applied . | . . . Relay Couplers Released . | . . . Fabnet Peak Effective % . | . . . Robots Rewired . | . . . Allies Hacked . | . . . Hacks Repelled . | . . . Allies | -11 -10 -10 -------- Run | Yrd Mat Sub Total Allies . | . . . Largest Group . | . . . Highest-Rated Group . | . . . Highest-Rated Ally . | . . . Total Orders . | . . . Ally Attacks . | . . . Total Damage . | . . . Kills . | . . . Allies Corrupted . | . . . Allies Melted . | . . . Intel | -11 -10 -10 ------- Run | Yrd Mat Sub Active Infowar (turns) 1176 | 13 579 584 Seismic 1176 | 13 579 584 Robot Analysis Total . | . . . Derelict Logs Recovered 2 | . . 2 Drone Launches . | . . . Drone Recoveries . | . . . Exploration | -11 -10 -10 ------------- Run | Yrd Mat Sub Turns Passed 2992 | 119 579 2294 Spaces Moved 1357 | 55 293 1009 Core 3 | 3 . . Treads 1354 | 52 293 1009 Legs . | . . . Wheels . | . . . Hover . | . . . Flight . | . . . Fastest Speed 50 | 50 160 160 Average Speed 196 | 154 160 208 Slowest Speed 240 | 160 160 240 Overloaded Moves . | . . . Propulsion Burnouts . | . . . Robots Hopped . | . . . Potential Cave-ins . | . . . Cave-ins Triggered . | . . . Exploration Rate (%) 34 | 5 43 56 Regions Visited 2 Branch Regions 1 Pre-discovered Areas 1 | . . 1 Known Exits Taken . | . . . Unknown Exits Taken 2 | 1 1 . Scrap Searched . | . . . Spaces Dug . | . . . Terrain Destroyed 62 | . . 62 Melee . | . . . Projectile . | . . . AOE 62 | . . 62 Terrain Rammed . | . . . Walls Destroyed . | . . . Machines Disabled . | . . . Actions | -11 -10 -10 --------- Run | Yrd Mat Sub Total 1555 | 74 366 1115 Wait 93 | 4 42 47 Move 1355 | 54 292 1009 Hop . | . . . Pick Up 13 | 3 8 2 Fast Attach 7 | 7 . . Attach 5 | . . 5 Detach . | . . . Swap 11 | . 3 8 Drop 2 | . 2 . Fire 69 | 6 19 44 Melee . | . . . Ram . | . . . Kick . | . . . Crush . | . . . Escape Stasis . | . . . Rewire . | . . . Trap . | . . . Miscellaneous . | . . . Route ------- -11/Scrapyard -10/Materials (discovered 3 exits: [*Mat] / [*Min] / *Sub) -10/Subcaves (discovered 2 exits: [*Mat] / [*Rec]) History --------- Turn | Location | Event 4 | -11/Scrapyard | Discovered new exit (range 16) 120 | -11/Scrapyard | Entered Materials 341 | -10/Materials | Discovered new exit (range 5) 343 | -10/Materials | Build established: Mutant 352 | -10/Materials | Discovered new exit (range 11) 541 | -10/Materials | Discovered new exit (range 9) 699 | -10/Materials | Entered Subcaves 740 | -10/Subcaves | Visited 4L-MR0's lab 792 | -10/Subcaves | Discovered new exit (range 10) 801 | -10/Subcaves | A swath of the cavern ceiling suddenly collapsed 914 | -10/Subcaves | Learned location of Zion (-7) 914 | -10/Subcaves | Met a Zionite searching for "candidates" 916 | -10/Subcaves | Shifting Twisted Machinery released Sub. Beam Cannon 919 | -10/Subcaves | Shifting Twisted Machinery released Flamer 1175 | -10/Subcaves | Learned 2 Materials zone layouts 1188 | -10/Subcaves | Learned Materials stockpile data 2749 | -10/Subcaves | Core integrity fell below 50% 2776 | -10/Subcaves | Shifting Twisted Machinery released Sub. Optics 2893 | -10/Subcaves | Discovered new exit (range 16) 2903 | -10/Subcaves | Core integrity fell below 20% 2943 | -10/Subcaves | Shifting Twisted Machinery released Sub. Optics 2993 | -10/Subcaves | Destroyed by Shrapnel Trap Last Messages --------------- 02903_ Flight Unit fries itself beyond repair. 02903_ Subatomizers dissect the Sub. Optics. 02903_ S-10 Pest destroyed. 02909_ Machine disabled. 02910_ Flight Unit fries itself beyond repair. 02912_ The unstable cave ceiling collapses. 02917_ Machine disabled. 02919_ The unstable cave ceiling collapses. 02927_ Subatomizers dissect the Sub. Monowheel. 02928_ The unstable cave ceiling collapses. 02939_ Subatomizers dissect the Sub. Monowheel. Sub. Optics falls loose from the Twisted Machinery. 02943_ The unstable cave ceiling collapses. 02946_ Destroyed Autobeam. 02947_ The unstable cave ceiling collapses. 02949_ Autobeam Turret destroyed. 02951_ The unstable cave ceiling collapses. 02965_ Subatomizers dissect the Sub. Monowheel. 02993_ Triggered Shrapnel Trap. 02993_ An expanding cloud of shrapnel blasts out in all directions. Map ----- +----------------------------------------------------+ | #???????# ##???????????????????? | | ##????### ###?????????????????? | | ###### ####### ## ###???????????????? | | # ## ##?????#### ##??????????????? | | # ##?????????# ##?????????????? | | ### #????????## #?????????????? | | ??## ##???????## ## #?????????????? | | ???# ####?????# ##?# #?????????????? | | ?### #?????# ##???###?????????????? | | ## ##???## ########??????????????? | | # ##?## # ## ##?????????????? | | # ### ### #?????????????? | | # #?# ## #?????????????? | | ## #?# =% # ## ##?????????????? | | ?##### =%& # ####??????????????? | | ??### ! #?????????????????? | | ?## ##?????????????????? | | ?# # #?????????????????? | | ?# #######?????????????????? | | ?# ### ##????????????????? | | ?###### ### ###??????????????? | | ??##### ## #??????????????? | | # ! #??????????????? | | # """" # ##?????????????? | | " " ## #?????????????? | | " " ## @##?????????????? | | """ """"#### #?????????????? | | " #??# #?????????????? | | #??## #?????????????? | | #" ### #??## #?????????????? | | " ??## ##???# #?????????????? | | ###""""???# #????## #?????????????? | | ???"" "??? #?????## ##?????????????? | | ?? ?" "???? ??????###??????????????? | | ????###????? ??????????????????????? | | ???????????? ##?????????????????????? | | ???????????? ?#???????????????????????? | | ???????????? ???????????????????????????? | | ?????????????????????????????????????????? | | ?????????????????????????????????????????? | | ?????????????????????????????????????????? | | ?????????????????????????????????????????? | | ?????????????????????????????????????????? | | ?????????????????????????????????????????? | | ?????????????????????????????????????????? | | ?????????????????????????????????????????? | | ?????????????????????????????????????????? | | ?????????????????????????????????????????? | | ?????????????????????????????????????????? | | ?????????????????????????????????????????? | +----------------------------------------------------+ Best States ------------- Heat Dissipation 25 Energy Generation 10 Energy Capacity 125 Matter Stores 300 Matter Capacity 300 Sight Range 16 Terrain Scan Density 10 Armor Coverage 225 Evasion (%) 40 Recoil Reduction 2 Item Schematics ----------------- None Robot Schematics ------------------ None Fabricated ------------ Nothing Repaired ---------- Nothing Alien Tech Used ----------------- None Achievements -------------- None Challenges ------------ None Game ------ Seed CompactSegregatorDerivative Manual? 0 Play Time 00:12:04 Cumulative 178.2 hours Start 2025.07.05 @ 08:11:32 End 2025.07.05 @ 08:21:19 Sessions 1 Manual Loads 0 Difficulty Rogue Special Mode None Game No. 161 Rogue 161 Adventurer 0 Explorer 0 Win Type - Total 10 Types 5/0/3/2/0/0/0/0/0/0 Lore% 71 Gallery% 66 Achievement% 63 Wizard Run 0 Options --------- Layout 1 ASCII 0 Keyboard 0 Movement Mouse Keybinds 0 Fullscreen 1 Font 32/SmallcapsGlow Map View 77x35 Zoom Use 0% Tactical HUD 1 Map Filters NONE Filters NONE Steam 1 RUN: 10b2e06e-1f79-463b-861a-498e73fe25d8